fUSD/lending_fUSD_20241023
["ID","MTS","AMOUNT","RATE_DAILY","PERIOD"]
[340674832,1729645842563,-150.0,0.00048877,2]
[340674833,1729645842574,-150.0,0.00048877,2]
[340674834,1729645842583,-150.0,0.00048877,2]
[340674835,1729645842592,-150.0,0.00048877,2]
[340674836,1729645842601,-359.59,0.00048877,2]
[340674837,1729645842611,-290.51,0.00048877,2]
[340674838,1729645842620,-430.06,0.00048877,2]
[340674839,1729645842629,-150.0,0.00048877,2]
[340674840,1729645842639,-150.0,0.00048877,2]
[340674841,1729645842650,-150.0,0.00048877,2]
[340674842,1729645842660,-359.59,0.00048877,2]
[340674843,1729645842669,-150.0,0.00048877,2]
[340674844,1729645842678,-150.0,0.00048877,2]
[340674845,1729645842687,-430.06,0.00048877,2]
[340674846,1729645842695,-150.0,0.00048877,2]
[340674847,1729645842704,-359.59,0.00048877,2]
[340674848,1729645842713,-10000.0,0.0004888,2]
[340674849,1729645842722,-7500.0,0.0004889,120]
[340674851,1729645842732,-9963.49242077,0.0004896,10]
[340674853,1729645842741,-159.22,0.0004896,120]
[340674855,1729645842751,-16250.1339414,0.0004897,10]
[340674856,1729645842760,-9963.49242077,0.0004898,10]
[340674857,1729645842769,-16250.1339414,0.0004899,10]
[340674859,1729645842778,-9963.49242077,0.0004899,10]
[340674861,1729645842788,-159.22,0.0004899,120]
[340674862,1729645842797,-25000.0,0.00049,120]
[340674864,1729645842806,-200.24,0.00049,31]
[340674866,1729645842816,-500.0,0.00049315,31]
[340674868,1729645842825,-401.36931495,0.00049396,27]
[340674870,1729645842835,-514.21635475,0.00049644,30]
[340674921,1729645843400,-538.40364525,0.00049644,30]
[340674922,1729645843411,-378.58198572,0.00049689,10]
[340674923,1729645843422,-500.00097494,0.00049689,10]
[340674924,1729645843835,-501.92,0.00045491,10]
[340674929,1729646768441,-66641.8229227,0.00011,2]
[340674932,1729647031690,-1204.10794487,0.000109,2]
[340674935,1729647031699,-128.52321322,0.00010973,2]
[340674959,1729647033672,250.0,0.0001,2]
[340674962,1729647037910,-377.88964756,0.00010973,2]
[340674963,1729647037920,-1752.18049719,0.00010998,2]
[340674964,1729647037929,-69.92252059,0.00010998,2]
[340674965,1729647038242,-230.07747941,0.00010998,2]
[340674966,1729647038251,-150.0,0.00010999,2]
[340674967,1729647038260,-500.0,0.00010999,2]
[340674968,1729647038269,-379.15844494,0.00010999,2]
[340674969,1729647038279,-500.0,0.00010999,2]
[340674970,1729647038288,-343.64182587,0.00010999,2]
[340674971,1729647038297,-77.9650361,0.00011,2]
[340674972,1729647038309,-13579.65091701,0.00011,2]
[340674977,1729647039833,-541206.47157701,0.00011,2]
[340674978,1729647039844,-8030.44788906,0.00011,2]
[340675015,1729647045865,-794.895,0.00011,2]
[340675016,1729647045877,-2756.03352466,0.00011,2]
[340675017,1729647045990,-38240.23412281,0.00011,2]
[340675018,1729647046001,-7055.478873,0.00011,2]
[340675036,1729648232012,-773.64563137,0.0001068,2]
[340675037,1729648232022,-1058.826368,0.00010726,2]
[340675038,1729648232032,-299.998,0.0001078,2]
[340675039,1729648232041,-150.0,0.00010899,2]
[340675040,1729648232050,-300.0,0.00010899,2]
[340675041,1729648232060,-374.0993,0.000109,2]
[340675042,1729648232069,-1063.2343,0.000109,2]
[340675043,1729648232078,-165.95629496,0.000109,2]
[340675044,1729648232087,-433.5912,0.000109,2]
[340675045,1729648232096,-158.30763556,0.000109,2]
[340675046,1729648232106,-179.57113511,0.000109,2]
[340675047,1729648232115,-34404.27013504,0.00011,2]
[340675048,1729648232126,-459.25521106,0.00011,2]
[340675049,1729648232137,-697.89036063,0.00011,2]
[340675053,1729648238157,-755.41195691,0.00011,2]
[340675054,1729648238484,-9083.90929655,0.00011,2]
[340675057,1729648240093,-559.38,0.00011,2]
[340675058,1729648240105,-4003.49431766,0.00011,2]
[340675059,1729648240245,-541206.47157701,0.00011,2]
[340675060,1729648240259,-588.43018212,0.00011,2]
[340675061,1729648242982,-287.0999999,0.00011,2]
[340675062,1729648243112,-827.15439571,0.00011,2]
[340675063,1729648243123,-838.42999911,0.00011,2]
[340675064,1729648243134,-429.49800015,0.00011,2]
[340675076,1729648244022,150.0,0.00012,3]
[340675079,1729648246126,-611.804,0.00011,2]
[340675080,1729648246139,-2702.18112139,0.00011,2]
[340675081,1729648246150,-350.31059454,0.00011,2]
[340675082,1729648246162,-6372.4344052,0.00011,2]
[340675083,1729648268025,35.96817439,0.00025,120]
[340675098,1729648839370,250.0,0.0001,2]
[340675100,1729649132115,-157.88923212,0.0001077,2]
[340675101,1729649132136,-239.998,0.0001078,2]
[340675102,1729649132157,-772.92974865,0.000108,2]
[340675103,1729649133089,-154.35686301,0.000108,2]
[340675104,1729649133110,-258.4059154,0.000109,2]
[340675249,1729649432171,-158.30763554,0.000109,2]
[340675250,1729649432182,-612.12517311,0.00010999,2]
[340675251,1729649432192,-150.0,0.00010999,2]
[340675252,1729649432203,-193.07082935,0.00010999,2]
[340675253,1729649432216,-106.92917065,0.00010999,2]
[340675254,1729649432226,-153.06581293,0.00010999,2]
[340675255,1729649432237,-172.92501642,0.00011,2]
[340675256,1729649432249,-501.57189338,0.00011,2]
[340675257,1729649435763,-526.66203378,0.00011,2]
[340675258,1729649435775,-397.09512393,0.00011,2]
[340675259,1729649435787,-1233.71751728,0.00011,2]
[340675260,1729649435798,-2856.53146261,0.00011,2]
[340675261,1729649435810,-9652.37778613,0.00011,2]
[340675262,1729649435821,-919.70999,0.00011,2]
[340675263,1729649435832,-3343.05243116,0.00011,2]
[340675264,1729649435846,-7224.38589391,0.00011,2]
[340675265,1729649435858,-27443.72529656,0.00011,2]
[340675268,1729649438152,-1682.74138119,0.00011,2]
[340675269,1729649438164,-877.47460095,0.00011,2]
[340675270,1729649438176,-24295.57467505,0.00011,2]
[340675271,1729649438187,-1002.15925591,0.00011,2]
[340675273,1729649438316,-819.35019706,0.00011,2]
[340675274,1729649438329,-2820.66603228,0.00011,2]
[340675275,1729649438701,-439.1971553,0.00011,2]
[340675277,1729649438712,-2749.56740305,0.00011,2]
[340675296,1729649440218,-299.99643555,0.00011,2]
[340675297,1729649440230,-1886.52,0.00011,2]
[340675298,1729649440398,-1134.76936546,0.00011,2]
[340675299,1729649440409,-1531.1700348,0.00011,2]
[340675300,1729649440420,-7149.812,0.00011,2]
[340675301,1729649440431,-338.84,0.00011,2]
[340675312,1729649443513,-301.595,0.00011,2]
[340675313,1729649443524,-1711.80000004,0.00011,2]
[340675314,1729649443535,-5388.63959752,0.00011,2]
[340675322,1729649446338,-45028.99892292,0.00011,2]
[340675323,1729649446350,-1346.45,0.00011,2]
[340675326,1729650053923,-191.999,0.0001078,2]
[340675327,1729650053945,-150.0,0.00010879,2]
[340675328,1729650053966,-443.99162773,0.00010889,2]
[340675329,1729650053991,-261.9323,0.000109,2]
[340675330,1729650054015,-7359.04114547,0.000109,2]
[340675331,1729650054038,-160.97566734,0.000109,2]
[340675332,1729650054060,-150.0,0.00010999,2]
[340675333,1729650054083,-300.0,0.00010999,2]
[340675334,1729650054106,-500.0,0.00010999,2]
[340675335,1729650054128,-323.11318003,0.00010999,2]
[340675336,1729650054156,-5158.94707943,0.00011,2]
[340675337,1729650103871,-1000.0,0.0001078,2]
[340675338,1729650110348,-78.476548,0.0001078,2]
[340675339,1729650110370,-300.0,0.00010999,2]
[340675340,1729650110390,-150.0,0.00010999,2]
[340675341,1729650110416,-421.523452,0.00011,2]
[340675342,1729650137956,-1000.0,0.0001078,2]
[340675343,1729650151765,-491.4747097,0.0001078,2]
[340675344,1729650151785,-340.4808,0.00010899,2]
[340675345,1729650151809,-168.0444903,0.00011,2]
[340675346,1729650354882,219.68959029,6.94e-05,2]
[340675347,1729650415649,-150.0,0.00010999,2]
[340675348,1729650415670,-50.0,0.00010999,2]
[340675362,1729650638363,-345.0,0.000109,2]
[340675369,1729650640437,-477.595,0.000109,2]
[340675370,1729650640471,-255.21244589,0.000109,2]
[340675375,1729650640624,-1443.49682472,0.000109,2]
[340675378,1729650640642,-302.3112286,0.000109,2]
[340675381,1729650640776,-34.88088985,0.000109,2]
[340675394,1729650643443,-2954.73832486,0.000109,2]
[340675395,1729650643571,-266.60642196,0.000109,2]
[340675418,1729650646592,-956.35609757,0.000109,2]
[340675419,1729650646602,-150.0,0.00010999,2]
[340675420,1729650646612,-239.76390243,0.00011,2]
[340675421,1729650646625,-262.8720992,0.00011,2]
[340675422,1729650647149,250.0,0.0001,2]
[340675423,1729650688474,-1199.82481248,0.000109,2]
[340675424,1729650688502,-259.21666268,0.00010999,2]
[340675425,1729650688532,-181.45166387,0.00010999,2]
[340675426,1729650688559,-613.0,0.00011,2]
[340675427,1729650688591,-170046.50686097,0.00011,2]
[340675428,1729650907366,-162.28758409,0.000109,2]
[340675429,1729650907387,-500.0,0.00010973,2]
[340675430,1729650907408,-150.0,0.00010999,2]
[340675431,1729650907430,-552.0,0.00011,2]
[340675432,1729650907450,-85.71241591,0.00011,2]
[340675433,1729651060128,-300.0,0.00010899,2]
[340675434,1729651060149,-181.62977231,0.000109,2]
[340675435,1729651060169,-518.37022769,0.000109,2]
[340675436,1729651061495,-439.17705898,0.000109,2]
[340675437,1729651078314,-150.0,0.00010999,2]
[340675438,1729651078336,-503.0,0.00011,2]
[340675439,1729651078357,-347.0,0.00011,2]
[340675440,1729651079643,-1000.0,0.00011,2]
[340675441,1729651080734,-1000.0,0.00011,2]
[340675442,1729651081765,-1000.0,0.00011,2]
[340675443,1729651082646,-300.0,0.00010999,2]
[340675444,1729651082669,-700.0,0.00011,2]
[340675445,1729651089117,-600.0,0.00011,2]
[340675446,1729651163647,389.32,0.00010214,2]
[340675450,1729651573543,-153.599,0.0001078,2]
[340675451,1729651573565,-846.401,0.00010799,2]
[340675452,1729651575185,-1000.0,0.00010799,2]
[340675453,1729651576211,-1000.0,0.00010799,2]
[340675454,1729651577214,-902.37573309,0.00010799,2]
[340675455,1729651577236,-97.62426691,0.000109,2]
[340675456,1729651578190,-1000.0,0.000109,2]
[340675457,1729651579284,-1000.0,0.000109,2]
[340675458,1729651580235,-1000.0,0.000109,2]
[340675459,1729651581634,-1000.0,0.000109,2]
[340675460,1729651582879,-1000.0,0.000109,2]
[340675461,1729651584185,-1000.0,0.000109,2]
[340675462,1729651590370,-234.95324315,0.000109,2]
[340675463,1729651590392,-115.04675685,0.000109,2]
[340675464,1729651754605,369.85,9.561e-05,2]
[340675467,1729651831621,-3012.42370077,0.000108,2]
[340675468,1729651831635,-237.57629923,0.000108,2]
[340675469,1729651831644,-150.0,0.00010899,2]
[340675470,1729651831655,-300.0,0.00010899,2]
[340675471,1729651831665,-43.26087869,0.000109,2]
[340675472,1729651831674,-3368.1545,0.000109,2]
[340675473,1729651831684,-5699.31975909,0.000109,2]
[340675474,1729651831693,-181.62977229,0.000109,2]
[340675475,1729651831703,-10433.77416447,0.000109,2]
[340675476,1729651831712,-8881.37192292,0.000109,2]
[340675477,1729651831721,-61149.46096099,0.00011,2]
[340675478,1729651831732,-920.06431593,0.00011,2]
[340675479,1729651831747,-218916.8102456,0.00011,2]
[340675480,1729651831759,-812.9464343,0.00011,2]
[340675481,1729651831770,-149693.96768093,0.00011,2]
[340675482,1729651831781,-24996.88478858,0.00011,2]
[340675483,1729651831792,-5484.94931223,0.00011,2]
[340675484,1729651837459,-8172.01858942,0.00011,2]
[340675485,1729651837603,-59078.01548718,0.00011,2]
[340675486,1729651837613,-252700.99038291,0.00011,2]
[340675487,1729651837622,-159.01,0.00011,2]
[340675488,1729651837631,-27709.37413023,0.00011,2]
[340675489,1729651837749,-516.07115909,0.00011,2]
[340675495,1729651839863,-16.59400137,0.00011,2]
[340675496,1729651839874,-2144.15986426,0.00011,2]
[340675497,1729651839886,-522.965,0.00011,2]
[340675498,1729651839897,-662.70634916,0.00011,2]
[340675499,1729651839908,-634.457277,0.00011,2]
[340675500,1729651839918,-2499.00329554,0.00011,2]
[340675501,1729651839929,-630.25841339,0.00011,2]
[340675502,1729651839941,-984.9210532,0.00011,2]
[340675503,1729651839951,-550.50093868,0.00011,2]
[340675506,1729651839971,-2141.25728077,0.00011,2]
[340675508,1729651839983,-2361.80800005,0.00011,2]
[340675510,1729651839994,-2537.03952318,0.00011,2]
[340675512,1729651840006,-1593.75750387,0.00011,2]
[340675514,1729651840067,-4465.35320515,0.00011,2]
[340675515,1729651840078,-807.664508,0.00011,2]
[340675516,1729651840089,-2954.1894928,0.00011,2]
[340675517,1729651840100,-2511.31265484,0.00011,2]
[340675518,1729651840111,-1895.093321,0.00011,2]
[340675523,1729651842609,-358471.40424526,0.00011,2]
[340675524,1729651842621,-500.0,0.00011,2]
[340675525,1729651842930,-1000.0,0.00011,2]
[340675529,1729651845530,-671.489872,0.00011,2]
[340675532,1729651845708,-5373.99942597,0.00011,2]
[340675563,1729652257922,408.21,9.003e-05,2]
[340675564,1729652410209,-4267.0,0.00010478,2]
[340675565,1729652458204,250.0,0.0001,2]
[340675566,1729652586198,250.0,0.00010401,2]
[340675567,1729652652430,1000.0,0.00010241,2]
[340675568,1729652687759,463.64330584,0.00010377,2]
[340675569,1729652735462,-1170.82166509,0.00010421,2]
[340675570,1729652753129,-54.01833491,0.00010421,2]
[340675571,1729652753149,-157.88923212,0.00010421,2]
[340675572,1729652753169,-200.85683739,0.00010427,2]
[340675573,1729652775938,565.81,0.00010283,2]
[340675574,1729652781157,387.79,8.491e-05,2]
[340675575,1729652794445,155.26,0.00010403,2]
[340675588,1729653004966,-200.0,0.00010427,2]
[340675590,1729653031892,-300.0,0.00010466,2]
[340675742,1729653037855,-11.92,0.00010466,2]
[340675743,1729653037865,-177.19,0.00010527,2]
[340675744,1729653037874,-250.0,0.00010545,2]
[340675745,1729653037884,-918.11542988,0.00010554,2]
[340675746,1729653037895,-789.42457012,0.00010554,2]
[340675747,1729653037904,-1294.60816738,0.00010738,2]
[340675748,1729653037915,-2534.25183262,0.00010738,2]
[340675749,1729653037925,-387.79,0.00010754,2]
[340675750,1729653037935,-166.77,0.00010764,2]
[340675751,1729653037943,-163.07347491,0.000108,2]
[340675752,1729653037955,-810.47972509,0.000108,2]
[340675753,1729653037964,-1356.30369629,0.00010873,2]
[340675754,1729653038022,-538.79913189,0.00010873,2]
[340675755,1729653038034,-1172.62595996,0.00010873,2]
[340675756,1729653038044,-285.49172499,0.00010873,2]
[340675757,1729653038055,-1179.32628687,0.00010873,2]
[340675758,1729653038066,-19367.4532,0.00010873,2]
[340675759,1729653038076,-150.0,0.00010899,2]
[340675760,1729653038086,-3555.94,0.00010899,2]
[340675761,1729653038095,-2641.14773604,0.000109,2]
[340675762,1729653038106,-966.71268148,0.000109,2]
[340675763,1729653038118,-822.49017547,0.000109,2]
[340675764,1729653038129,-3369.41822919,0.000109,2]
[340675765,1729653038140,-3524.79836481,0.000109,2]
[340675766,1729653038214,-381.33465368,0.000109,2]
[340675770,1729653039797,-410.13177793,0.000109,2]
[340675772,1729653039809,-48642.5985814,0.000109,2]
[340675773,1729653039818,-7309.9261,0.000109,2]
[340675774,1729653039828,-6310.3989,0.000109,2]
[340675775,1729653039837,-800.1375,0.000109,2]
[340675776,1729653039846,-324.4,0.000109,2]
[340675777,1729653039855,-5662.5389186,0.000109,2]
[340675778,1729653039877,-0.00041584,0.000109,2]
[340675779,1729653039890,-388.44826172,0.000109,2]
[340675780,1729653039901,-485.3980518,0.000109,2]
[340675781,1729653039912,-785.32139815,0.000109,2]
[340675782,1729653039996,-2689.22010793,0.000109,2]
[340675783,1729653040198,-3161.16284596,0.000109,2]
[340675784,1729653040207,-7496.33715404,0.000109,2]
[340675785,1729653040219,-38.91284596,0.000109,2]
[340675786,1729653040230,-299.99,0.000109,2]
[340675787,1729653040239,-3937.57897451,0.000109,2]
[340675788,1729653042792,-565.04229735,0.000109,2]
[340675789,1729653042805,-2608.63566438,0.000109,2]
[340675790,1729653043006,-2888.73306376,0.000109,2]
[340675791,1729653043016,-473.02,0.000109,2]
[340675792,1729653043026,-499.99,0.000109,2]
[340675793,1729653043035,-162.28758404,0.000109,2]
[340675794,1729653043044,-150.99,0.000109,2]
[340675795,1729653043053,-5180.74961931,0.000109,2]
[340675796,1729653043063,-554.12,0.00010945,2]
[340675797,1729653043072,-150.0,0.00010959,2]
[340675798,1729653043081,-1500.0,0.00010959,2]
[340675799,1729653043091,-250.0,0.00010959,2]
[340675800,1729653043100,-18.00490951,0.00011,2]
[340675807,1729653045780,-483.99509049,0.00011,2]
[340675808,1729653045790,-1822.73468788,0.00011,2]
[340675809,1729653045802,-16631.06558991,0.00011,2]
[340675810,1729653045991,-214333.64006385,0.00011,2]
[340675812,1729653046182,-3676.8728,0.00011,2]
[340675821,1729653133808,1817.961,0.00010378,2]
[340675822,1729653279994,-300.0,0.0001078,2]
[340675823,1729653313033,-300.0,0.00010699,2]
[340675824,1729653384143,418.85,9.182e-05,2]
[340675825,1729653828975,155.26,0.00010311,2]
[340675826,1729653907444,403.3,0.00010153,2]
[340675827,1729653966622,397.9,8.239e-05,2]
[340675828,1729654092738,505.04141309,0.00010402,2]
[340675829,1729654098612,505.04141307,0.00010403,2]
[340675830,1729654102757,505.04141307,0.00010404,2]
[340675831,1729654107728,505.04141307,0.00010405,2]
[340675832,1729654113061,-281.52600566,0.00010406,2]
[340675833,1729654114328,-223.51540741,0.00010406,2]
[340675838,1729654156764,15525.03,9.936e-05,2]
[340675842,1729654188399,449.86248922,0.00010308,2]
[340675848,1729654231854,-505.04141307,0.00010407,2]
[340675850,1729654231864,-505.04141307,0.00010409,2]
[340675852,1729654231874,-505.04141307,0.0001041,2]
[340675854,1729654231883,-505.04141307,0.00010411,2]
[340675857,1729654231892,-505.04141307,0.00010412,2]
[340675861,1729654231901,-505.04141307,0.00010413,2]
[340675866,1729654231911,-505.04141307,0.00010414,2]
[340675870,1729654231919,-150.0,0.00010493,2]
[340675875,1729654231928,-397.9,0.00010503,2]
[340675877,1729654231937,-550.9542688,0.00010621,2]
[340675881,1729654231946,-935.40830997,0.0001078,2]
[340675885,1729654231956,-178.66,0.00010782,2]
[340675886,1729654231965,-300.0,0.00010799,2]
[340675887,1729654231974,-451.78752974,0.000108,2]
[340675888,1729654232018,-7675.88457026,0.000108,2]
[340675889,1729654232027,-170.879,0.00010899,2]
[340675890,1729654232036,-9036.74,0.00010899,2]
[340675891,1729654232045,-499.99,0.00010899,2]
[340675892,1729654232055,-6491.62657317,0.00010899,2]
[340675893,1729654232064,-52856.7705,0.000109,2]
[340675894,1729654232073,-500.0,0.000109,2]
[340675895,1729654232082,-1156.55935661,0.000109,2]
[340675896,1729654232093,-290.832,0.000109,2]
[340675897,1729654232209,-1912.0,0.00010567,2]
[340675898,1729654232219,-14646.000001,0.000109,2]
[340675899,1729654232230,-10061.83104239,0.000109,2]
[340675900,1729654232239,-1801.1133,0.000109,2]
[340675901,1729654232249,-633.5693,0.000109,2]
[340675902,1729654232258,-1434.6928,0.000109,2]
[340675903,1729654232267,-59180.8075,0.000109,2]
[340675904,1729654232276,-172.04022124,0.000109,2]
[340675905,1729654232286,-240.04348799,0.000109,2]
[340675906,1729654232295,-250.0,0.00010919,2]
[340675907,1729654232305,-638.36485778,0.0001092,2]
[340675908,1729654232314,-8111.53853471,0.0001092,2]
[340675909,1729654232323,-5523.73015843,0.00010959,2]
[340675910,1729654232333,-5271.19,0.00010959,2]
[340675911,1729654232343,-250.0,0.00010959,2]
[340675912,1729654232353,-218.19,0.00010959,2]
[340675913,1729654232362,-1160.97,0.00010959,2]
[340675914,1729654232372,-1500.0,0.00010959,2]
[340675915,1729654232382,-510.05574393,0.00010973,2]
[340675916,1729654232391,-1000.0,0.00010999,2]
[340675917,1729654232400,-508.0,0.00011,2]
[340675918,1729654232410,-250.51274599,0.00011,2]
[340675919,1729654232419,-31588.16543105,0.00011,2]
[340675920,1729654232431,-1882.02912038,0.00011,2]
[340675921,1729654238362,-161.6316257,0.000109,2]
[340675922,1729654238375,-181.62977229,0.0001092,2]
[340675923,1729654238385,-2360.61860201,0.00011,2]
[340675925,1729654238403,-327.70768135,0.00011,2]
[340675930,1729654238445,-440.55688758,0.00011,2]
[340675932,1729654238456,-2344.0163238,0.00011,2]
[340675935,1729654238473,-334.755,0.00011,2]
[340675939,1729654238507,262.78646843,0.00010311,2]
[340676069,1729654239862,-368.0405131,0.00011,2]
[340676070,1729654240110,-6695.4,0.00011,2]
[340676071,1729654240138,-2727.0184741,0.00011,2]
[340676072,1729654240160,-2896.58360006,0.00011,2]
[340676205,1729654243182,-10076.0464,0.00010859,2]
[340676206,1729654243200,-299992.12468421,0.00011,2]
[340676207,1729654243218,-161903.67171669,0.00011,2]
[340676208,1729654243345,-0.15490352,0.00011,2]
[340676211,1729654245861,-181411.11250156,0.00011,2]
[340676212,1729654245882,-259.82288945,0.00011,2]
[340676215,1729654246034,-6709.59999999,0.00011,2]
[340676216,1729654246053,-12369.63152005,0.00011,2]
[340676217,1729654246071,-6695.5,0.00011,2]
[340676219,1729654246193,-265.24279795,0.00011,2]
[340676233,1729654270333,250.0,0.0001,2]
[340676234,1729654387153,1000.0,9.897e-05,2]
[340676235,1729654548675,367.01,8.994e-05,2]
[340676236,1729654823261,250.0,9.89e-05,2]
[340676237,1729654854885,250.0,9.89e-05,2]
[340676238,1729654855682,283.85,9.968e-05,2]
[340676239,1729654999643,1000.0,9.888e-05,2]
[340676240,1729655019964,201.65,9.888e-05,2]
[340676241,1729655074151,166.77,9.884e-05,2]
[340676246,1729655359095,250.0,9.87e-05,2]
[340676248,1729655431971,-178.66,0.00010418,2]
[340676249,1729655431983,-150.0,0.00010712,2]
[340676250,1729655431993,-150.0,0.00010713,2]
[340676251,1729655432003,-150.0,0.00010727,2]
[340676252,1729655432014,-150.0,0.00010727,2]
[340676253,1729655432023,-150.0,0.00010732,2]
[340676254,1729655432034,-150.0,0.00010734,2]
[340676255,1729655432044,-150.0,0.00010736,2]
[340676256,1729655432054,-150.0,0.00010737,2]
[340676257,1729655432065,-150.0,0.00010738,2]
[340676258,1729655432075,-150.0,0.00010742,2]
[340676259,1729655432084,-499.99,0.00010742,2]
[340676260,1729655432093,-150.0,0.00010747,2]
[340676261,1729655432102,-150.0,0.00010752,2]
[340676262,1729655432111,-150.0,0.00010757,2]
[340676263,1729655432119,-75.46559046,0.00010759,2]
[340676264,1729655432131,-74.53440954,0.00010759,2]
[340676265,1729655432140,-150.0,0.00010761,2]
[340676266,1729655432150,-150.0,0.00010763,2]
[340676267,1729655432161,-150.0,0.00010766,2]
[340676268,1729655432171,-150.0,0.00010769,2]
[340676269,1729655432181,-150.0,0.00010769,2]
[340676270,1729655432191,-6.43464369,0.00010769,2]
[340676271,1729655432204,-143.56535631,0.00010769,2]
[340676272,1729655432213,-150.0,0.0001077,2]
[340676273,1729655432223,-150.0,0.00010771,2]
[340676274,1729655432234,-150.0,0.00010774,2]
[340676275,1729655432244,-150.0,0.00010775,2]
[340676276,1729655432253,-150.0,0.00010779,2]
[340676277,1729655432265,-150.0,0.00010782,2]
[340676278,1729655432274,-150.0,0.00010783,2]
[340676279,1729655432285,-150.0,0.00010786,2]
[340676280,1729655432294,-150.0,0.00010787,2]
[340676281,1729655432304,-150.0,0.00010792,2]
[340676282,1729655432314,-150.0,0.00010794,2]
[340676284,1729655432325,-150.0,0.00010795,2]
[340676286,1729655432334,-150.0,0.00010798,2]
[340676288,1729655432343,-150.0,0.000108,2]
[340676290,1729655432352,-150.0,0.00010801,2]
[340676292,1729655432362,-150.0,0.00010812,2]
[340676293,1729655432371,-150.0,0.00010814,2]
[340676295,1729655432380,-150.0,0.00010814,2]
[340676297,1729655432389,-150.0,0.00010817,2]
[340676299,1729655432399,-150.0,0.00010821,2]
[340676301,1729655432408,-150.0,0.00010824,2]
[340676303,1729655432417,-150.0,0.00010831,2]
[340676305,1729655432426,-150.0,0.00010831,2]
[340676307,1729655432436,-150.0,0.00010833,2]
[340676309,1729655432445,-150.0,0.00010836,2]
[340676311,1729655432454,-150.0,0.00010839,2]
[340676313,1729655432463,-150.0,0.00010844,2]
[340676315,1729655432472,-150.0,0.00010849,2]
[340676317,1729655432482,-415.4057,0.00010849,2]
[340676319,1729655432491,-150.0,0.00010851,2]
[340676320,1729655432500,-150.0,0.00010852,2]
[340676322,1729655432510,-150.0,0.00010858,2]
[340676323,1729655432520,-150.0,0.0001086,2]
[340676324,1729655432529,-150.0,0.00010861,2]
[340676325,1729655432539,-150.0,0.00010861,2]
[340676326,1729655432548,-150.0,0.00010869,2]
[340676327,1729655432557,-150.0,0.00010877,2]
[340676328,1729655432566,-150.0,0.00010879,2]
[340676329,1729655432576,-150.0,0.00010881,2]
[340676330,1729655432585,-150.0,0.00010882,2]
[340676331,1729655432595,-150.0,0.00010883,2]
[340676332,1729655432605,-150.0,0.00010888,2]
[340676333,1729655432614,-150.0,0.00010889,2]
[340676334,1729655432624,-150.0,0.00010891,2]
[340676335,1729655432633,-150.0,0.00010895,2]
[340676336,1729655432643,-901.4919,0.000109,2]
[340676337,1729655432653,-161.04073293,0.000109,2]
[340676338,1729655432664,-150.0,0.000109,2]
[340676339,1729655432674,-158.51714259,0.000109,2]
[340676340,1729655432685,-150.0,0.000109,2]
[340676341,1729655432694,-5842.46391588,0.000109,2]
[340676342,1729655432703,-161.63162569,0.000109,2]
[340676343,1729655432713,-150.0,0.00010902,2]
[340676344,1729655432722,-150.0,0.00010905,2]
[340676345,1729655432732,-150.0,0.00010906,2]
[340676346,1729655432742,-150.0,0.00010909,2]
[340676347,1729655432751,-150.0,0.00010909,2]
[340676348,1729655432763,-150.0,0.00010914,2]
[340676349,1729655432773,-150.0,0.00010916,2]